bitfinex-derivatives/quotes_ETHF0:USTF0_20251223
["timestamp","ask_amount","ask_price","bid_price","bid_amount"]
[1766489789715,1.18754862,2970.3,2969.3,3.368]
[1766489790019,3.368,2970.2,2969.3,3.368]
[1766489794025,0.16843,2970.3,2969.3,3.368]
[1766489794219,3.368,2970.2,2969.3,9.536]
[1766489801522,0.16843,2970.3,2969.3,9.536]
[1766489801722,3.368,2970.2,2969.3,9.536]
[1766489813139,0.16843,2970.3,2969.3,9.536]
[1766489813332,3.368,2970.2,2969.3,9.536]
[1766489817944,4.38713467,2970.2,2969.3,9.536]
[1766489840154,4.38713467,2970.2,2969.2,0.00504506]
[1766489840453,1.01913467,2970.0,2969.3,9.724]
[1766489841257,1.01913467,2970.0,2969.4,0.00504506]
[1766489846355,3.368,2969.9,2969.4,0.00504506]
[1766489847657,3.368,2969.9,2969.1,6.355]
[1766489847856,1.01913467,2969.8,2969.2,3.368]
[1766489848761,1.01913467,2969.8,2969.2,3.37136344]
[1766489853658,1.01913467,2969.8,2969.2,0.00336344]
[1766489853860,1.01913467,2969.6,2969.0,3.368]
[1766489873679,3.53645,2969.9,2969.0,3.368]
[1766489873976,1.01913467,2969.6,2969.0,3.368]
[1766489874477,1.01913467,2969.4,2967.8,4.4006068]
[1766489874672,0.00504506,2968.9,2968.4,3.368]
[1766489874873,0.00504506,2968.9,2968.5,9.719]
[1766489875073,0.00504506,2968.9,2968.6,3.368]
[1766489875479,1.02417973,2968.9,2967.8,1.01913467]
[1766489875676,1.02417973,2968.9,2967.8,1.02227799]
[1766489875870,1.02417973,2968.9,2967.9,6.543]
[1766489876474,0.00504506,2968.9,2967.9,6.543]
[1766489877676,0.00504506,2968.9,2967.8,1.02227799]
[1766489877887,0.00504506,2968.9,2967.9,9.719]
[1766489878176,1.01913467,2968.8,2967.9,9.719]
[1766489878373,0.00504506,2968.9,2967.9,9.719]
[1766489878777,0.00504506,2968.9,2967.9,10.73813467]
[1766489879983,0.00504506,2968.9,2967.9,9.719]
[1766489881177,3.37404506,2968.9,2967.9,9.719]
[1766489882487,0.16849,2969.2,2968.2,1.01990675]
[1766489882783,3.369,2969.4,2968.4,1.01990675]
[1766489882978,0.16849,2969.2,2968.4,1.01990675]
[1766489883179,3.369,2969.4,2968.4,1.01990675]
[1766489883688,0.00504506,2969.2,2968.4,1.01990675]
[1766489884080,0.17353506,2969.2,2968.4,1.01990675]
[1766489884280,0.00504506,2969.2,2968.4,1.01990675]
[1766489891595,0.00504506,2969.2,2968.3,9.718]
[1766489893902,0.00024506,2969.2,2968.5,1.01990675]
[1766489894100,3.369,2969.4,2968.6,9.782]
[1766489894998,0.00504506,2969.3,2968.6,9.782]
[1766489906610,0.00504506,2969.3,2968.2,41.81990675]
[1766489906802,0.00504506,2969.3,2968.3,9.78]
[1766489907806,0.00504506,2969.3,2968.2,41.81990675]
[1766489907998,0.00504506,2969.3,2968.4,6.416]
[1766489909115,0.00504506,2969.3,2968.4,7.43590675]
[1766489917610,0.00504506,2969.3,2968.4,6.416]
[1766489923720,0.00504506,2969.3,2968.5,3.369]
[1766489923921,0.00504506,2969.3,2968.6,6.451]
[1766489926224,3.37404506,2969.3,2968.6,6.451]
[1766489931723,0.00504506,2969.3,2968.6,6.451]
[1766489941934,0.00504506,2969.3,2968.6,7.47059671]
[1766489942334,0.00504506,2969.3,2968.7,3.369]
[1766489952140,3.53746,2969.8,2969.0,1.01959671]
[1766489952337,3.53746,2969.8,2969.0,4.38859671]
[1766489952947,0.00504506,2969.7,2969.0,4.38859671]
[1766489957336,0.00504506,2969.7,2969.0,3.369]
[1766489958739,3.53746,2969.8,2969.0,3.369]
[1766489959944,0.00504506,2969.7,2969.0,3.369]
[1766489965447,0.00504506,2969.7,2969.0,9.806]
[1766489979548,3.369,2970.0,2969.3,1.01959671]
[1766489979747,3.369,2970.0,2969.3,4.38859671]
[1766489980644,0.00504506,2969.9,2969.3,4.38859671]
[1766489981655,0.00504506,2969.9,2969.3,3.369]
[1766490000570,1.01959671,2969.7,2968.7,40.8]
[1766490000765,1.01959671,2969.7,2968.8,7.46159671]
[1766490000972,1.01959671,2969.7,2968.8,10.82959671]
[1766490001370,1.01959671,2969.7,2968.8,9.81]
[1766490001976,1.02453131,2969.9,2968.8,9.81]
[1766490005080,1.19298131,2969.9,2968.8,9.81]
[1766490005978,0.17349506,2969.9,2968.8,10.82948625]
[1766490007777,0.17349506,2969.9,2968.8,9.81]
[1766490008380,0.17349506,2969.9,2968.5,40.8]
[1766490008581,1.19298131,2969.9,2968.6,10.83148625]
[1766490012079,0.17349506,2969.9,2968.8,1.01948625]
[1766490012277,0.17349506,2969.9,2968.9,3.368]
[1766490015678,1.01948625,2970.5,2969.2,1.01948625]
[1766490015879,4.651,2970.3,2969.2,10.82948625]
[1766490016781,0.00336344,2970.0,2969.5,0.00504506]
[1766490028089,0.16844,2970.1,2969.5,0.00504506]
[1766490028289,3.368,2970.2,2969.5,3.37304506]
[1766490028486,2.7378,2970.2,2969.5,3.37304506]
[1766490028791,0.16841,2970.6,2969.5,3.37304506]
[1766490037290,0.16841,2970.6,2969.5,4.39253131]
[1766490037496,3.368,2970.5,2969.5,4.39253131]
[1766490037895,3.368,2970.5,2969.7,1.01948625]
[1766490038095,3.368,2970.5,2969.8,3.368]
[1766490043601,3.37051097,2970.7,2969.9,1.01948625]
[1766490043803,0.00251097,2970.7,2969.9,1.02243709]
[1766490044003,0.00251097,2970.7,2970.0,0.0258]
[1766490044300,0.00251097,2970.7,2970.1,3.368]
[1766490045695,3.368,2970.8,2970.2,0.0708]
[1766490045901,2.4227,2970.8,2970.2,0.0708]
[1766490046199,1.6743,2970.8,2970.1,4.38748625]
[1766490046402,1.6743,2970.8,2970.2,0.0898]
[1766490046902,1.67727731,2970.8,2970.1,4.38748625]
[1766490047201,1.67727731,2970.8,2970.2,0.10469999]
[1766490047414,1.67727731,2970.8,2970.1,4.38748625]
[1766490047588,1.67727731,2970.8,2970.2,0.10469999]
[1766490047994,1.67727731,2970.8,2970.1,4.38748625]
[1766490048198,1.67727731,2970.8,2970.2,0.10469999]
[1766490048602,1.67727731,2970.8,2970.1,4.38748625]
[1766490048794,1.67727731,2970.8,2970.2,0.10469999]
[1766490049290,1.67727731,2970.8,2970.1,4.38748625]
[1766490049499,1.67727731,2970.8,2970.2,0.10469999]
[1766490049900,1.67727731,2970.8,2970.1,3.368]
[1766490050105,1.67727731,2970.8,2970.2,0.10469999]
[1766490050498,1.67727731,2970.8,2970.1,3.368]
[1766490050695,1.67727731,2970.8,2970.2,0.10469999]
[1766490051110,1.67727731,2970.8,2970.1,3.368]
[1766490051407,1.67727731,2970.8,2970.2,0.10469999]
[1766490052000,1.67727731,2970.8,2970.1,3.368]
[1766490052199,1.67727731,2970.8,2970.2,0.10469999]
[1766490052607,1.67727731,2970.8,2970.1,3.368]
[1766490052809,1.67727731,2970.8,2970.2,0.10469999]
[1766490053108,1.67727731,2970.8,2970.1,3.368]
[1766490063909,1.67727731,2970.8,2970.1,4.38662919]
[1766490067215,1.67727731,2970.8,2970.3,1.01862919]
[1766490069616,3.53539,2971.1,2970.4,3.367]
[1766490069814,3.53539,2971.1,2970.6,1.01862919]
[1766490070010,0.1048,2971.2,2970.6,1.01862919]
[1766490070214,3.367,2971.6,2971.1,1.01862919]
[1766490070417,3.367,2971.6,2971.3,1.01862919]
[1766490070614,3.37066084,2971.6,2971.3,1.01862919]
[1766490070813,0.00366084,2971.6,2971.3,1.01862919]
[1766490071418,0.00366084,2971.6,2971.2,0.00504506]
[1766490072605,0.00366084,2971.6,2971.2,1.02367425]
[1766490073217,0.00366084,2971.6,2971.2,1.12847425]
[1766490074923,3.64015,2971.8,2971.2,1.12847425]
[1766490075213,0.1049,2971.9,2971.6,1.01862919]
[1766490075418,3.367,2972.3,2971.8,1.01862919]
[1766490075622,3.53531,2972.5,2972.0,1.01862919]
[1766490075814,2.74532083,2972.5,2972.2,1.01862919]
[1766490076214,2.74532083,2972.5,2972.0,1.02247858]
[1766490076417,2.85922083,2972.5,2972.0,1.02247858]
[1766490076712,2.74532083,2972.5,2972.0,1.02247858]
[1766490078817,0.00429693,2972.5,2972.0,1.02247858]
[1766490082620,1.01862919,2972.2,2971.5,3.366]
[1766490082822,3.366,2972.3,2971.5,3.366]
[1766490083026,3.366,2972.3,2971.5,3.47999999]
[1766490083420,3.366,2972.3,2971.5,3.366]
[1766490083725,3.366,2972.3,2971.5,3.37012775]
[1766490090127,3.53432,2972.3,2971.5,3.37012775]
[1766490091122,0.16833,2972.1,2971.5,0.00412775]
[1766490091329,4.38462919,2972.0,2971.2,3.37104506]
[1766490091624,4.55296919,2972.0,2971.2,3.37104506]
[1766490091827,0.0916,2971.9,2971.2,3.46264506]
[1766490092023,4.55296919,2972.0,2971.2,3.46264506]
[1766490092219,0.0917,2971.9,2971.2,3.46640917]
[1766490092622,4.55296919,2972.0,2971.2,3.46640917]
[1766490092825,0.0917,2971.9,2971.2,3.46640917]
[1766490093017,4.55296919,2972.0,2971.2,3.37480917]
[1766490093932,3.53434,2972.0,2971.2,3.37480917]
[1766490096235,0.16834,2972.0,2971.2,3.37480917]
[1766490096529,3.366,2971.9,2971.2,3.37480917]
[1766490096931,0.0917,2971.8,2971.3,0.0917]
[1766490097130,3.366,2971.8,2971.3,0.0917]
[1766490097729,3.366,2971.8,2971.2,3.37480917]
[1766490097933,0.0917,2971.8,2971.3,0.0917]
[1766490098127,3.4577,2971.8,2971.3,0.0917]
[1766490098630,3.4577,2971.8,2971.2,3.37480917]
[1766490098834,3.366,2971.8,2971.3,0.0917]
[1766490099229,3.366,2971.8,2971.2,3.37480917]
[1766490099540,3.4577,2971.8,2971.2,3.46650917]
[1766490103135,3.63109505,2971.8,2971.0,3.366]
[1766490103329,3.53939505,2971.8,2971.0,3.27144506]
[1766490103531,0.0917,2971.7,2971.1,0.0917]
[1766490104038,0.0917,2971.7,2971.1,0.10008184]
[1766490105636,0.0917,2971.7,2971.1,1.11871103]
[1766490106031,3.53939505,2971.8,2971.1,1.02701103]
[1766490106338,3.366,2972.1,2971.7,1.01862919]
[1766490106835,0.0317,2972.3,2971.7,1.01862919]
[1766490107428,0.0317,2972.3,2971.5,4.38462919]
[1766490108038,0.20002,2972.3,2971.5,4.38462919]
[1766490108744,0.20002,2972.3,2971.5,3.366]
[1766490108943,0.20002,2972.3,2971.5,4.38462919]
[1766490109242,0.16832,2972.3,2971.5,4.38462919]
[1766490109727,0.16832,2972.3,2971.5,3.366]
[1766490109931,0.16832,2972.2,2971.5,3.366]
[1766490110222,4.38462919,2972.1,2971.3,3.366]
[1766490110523,3.366,2972.1,2971.3,3.366]
[1766490112138,1.01862919,2971.9,2971.1,3.37438184]
[1766490112533,3.366,2971.8,2971.1,3.37438184]
[1766490112731,3.366,2971.8,2971.2,0.0189]
[1766490112933,3.366,2971.8,2971.1,3.37438184]
[1766490114739,3.366,2971.8,2971.1,4.39301103]
[1766490117341,3.366,2971.8,2971.1,3.37438184]
[1766490117648,1.01862919,2971.7,2971.1,0.00838184]
[1766490117941,1.01862919,2971.7,2970.7,3.366]
[1766490118137,0.0191,2971.6,2970.8,0.0191]
[1766490118544,3.53435,2971.8,2970.7,4.38462919]
[1766490118843,0.02414506,2971.5,2971.0,0.00504506]
[1766490120941,3.39014506,2971.5,2971.0,0.00504506]
[1766490121442,3.37104506,2971.5,2970.7,3.3690929]
[1766490121645,1.01862919,2970.9,2969.9,1.01862919]
[1766490121941,3.366,2971.0,2970.1,1.01862919]
[1766490122143,0.01920001,2970.9,2970.1,1.01862919]
[1766490122346,0.16838,2971.2,2970.7,1.01862919]
[1766490122539,3.55358001,2971.2,2970.7,1.01862919]
[1766490122744,3.53438,2971.2,2970.7,0.00335792]
[1766490122941,3.55398,2971.2,2970.7,0.00335792]
[1766490123144,3.53438,2971.2,2970.7,0.00335792]
[1766490124346,3.53438,2971.2,2970.5,3.366]
[1766490124643,3.55398,2971.2,2970.6,0.0196]
[1766490125246,3.53438,2971.2,2970.5,3.366]
[1766490125446,0.01970001,2971.1,2970.5,3.39005742]
[1766490131153,0.16838,2971.2,2970.5,3.37035742]
[1766490131444,3.53538,2971.2,2970.5,3.37035742]
[1766490131644,3.53538,2971.2,2970.6,0.0196]
[1766490132049,3.53538,2971.2,2970.5,3.37035742]
[1766490132449,0.0196,2971.4,2970.6,0.0196]
[1766490132647,0.00504506,2971.5,2970.7,1.01843951]
[1766490132843,0.00504506,2971.5,2970.8,3.367]
[1766490141556,0.00504506,2971.5,2970.9,1.01843951]
[1766490141758,0.16835,2971.7,2970.9,1.01843951]
[1766490142060,3.53435,2971.7,2970.9,1.01843951]
[1766490142361,3.53435,2971.7,2971.0,0.00709999]
[1766490142857,3.53435,2971.7,2970.9,1.01843951]
[1766490142858,0.00504506,2971.6,2970.9,1.01843951]
[1766490143258,0.00504506,2971.6,2971.0,0.00709999]
[1766490143460,0.00504506,2971.6,2970.9,1.01843951]
[1766490149558,0.00504506,2971.6,2970.8,3.367]
[1766490157273,3.366,2971.5,2970.8,3.367]
[1766490158574,3.34679999,2971.5,2970.8,3.367]
[1766490167272,3.34679999,2971.5,2970.8,3.366]
[1766490175782,0.17340506,2971.6,2970.8,3.366]
[1766490175980,3.53940506,2971.6,2970.8,3.366]
[1766490176479,3.53940506,2971.6,2970.9,0.0013]
[1766490176876,3.53940506,2971.6,2970.8,3.366]
[1766490177078,3.54070506,2971.6,2970.9,0.0013]
[1766490177583,3.54070506,2971.6,2970.8,3.366]
[1766490177785,3.54070506,2971.6,2970.9,0.0013]
[1766490178180,3.54070506,2971.6,2970.8,3.366]
[1766490178377,3.53940506,2971.6,2970.9,0.00109999]
[1766490179185,3.54050506,2971.6,2970.8,3.366]
[1766490183291,3.53940506,2971.6,2970.8,3.366]
[1766490184792,3.53940506,2971.6,2971.0,1.01843951]
[1766490184994,0.17031217,2971.6,2971.0,1.01843951]
[1766490185394,0.17031217,2971.6,2970.8,3.366]
[1766490185585,0.17031217,2971.6,2970.9,1.01843951]
[1766490187594,0.17031217,2971.6,2971.1,1.01843951]
[1766490187996,0.17031217,2971.6,2971.2,1.01787948]
[1766490188195,0.15857217,2971.6,2971.2,1.01787948]
[1766490188597,0.15857217,2971.6,2970.8,4.38387948]
[1766490188796,0.15857217,2971.6,2971.2,1.01787948]
[1766490193302,3.366,2971.7,2971.2,1.01787948]
[1766490194601,0.16836,2971.6,2971.1,3.366]
[1766490195401,0.16836,2971.6,2971.1,4.38387948]
[1766490197504,0.16836,2971.6,2971.1,1.01787948]
[1766490197706,0.16836,2971.6,2971.1,4.38387948]
[1766490197905,0.16836,2971.6,2971.1,3.366]
[1766490206115,0.16836,2971.6,2971.0,1.01787948]
[1766490208712,0.16836,2971.5,2970.5,40.80435742]
[1766490209015,0.16836,2971.5,2970.7,1.01787948]
[1766490209513,0.16836,2971.5,2970.9,1.01787948]
[1766490213518,0.16836,2971.5,2971.1,1.01787948]
[1766490214021,3.53436,2971.5,2971.1,1.01787948]
[1766490214210,0.16836,2971.5,2971.1,1.01787948]
[1766490218514,3.366,2971.6,2971.1,1.01787948]
[1766490219321,0.16836,2971.5,2971.1,1.01787948]
[1766490220320,0.16836,2971.5,2970.9,1.01787948]
[1766490220710,0.16836,2971.5,2970.9,4.38387948]
[1766490221017,0.16836,2971.5,2970.9,3.366]
[1766490227119,0.16836,2971.5,2970.9,4.38387948]
[1766490233329,0.16836,2971.5,2970.9,3.366]
[1766490233527,0.16836,2971.5,2970.9,4.38387948]
[1766490234930,0.16836,2971.5,2970.5,0.00435742]
[1766490234931,0.16837,2971.4,2970.5,0.00435742]
[1766490235126,3.366,2971.3,2970.7,1.01787948]
[1766490235517,3.366,2971.3,2970.9,1.01787948]
[1766490235924,3.366,2971.2,2970.9,1.01787948]
[1766490237840,0.16837,2971.4,2970.9,1.01787948]
[1766490238042,3.366,2971.3,2970.9,1.01787948]
[1766490239032,3.366,2971.3,2970.7,1.01787948]
[1766490239442,0.16837,2971.4,2970.7,1.01787948]
[1766490239644,3.366,2971.3,2970.7,1.01787948]
[1766490240638,0.16837,2971.4,2970.7,1.01787948]
[1766490240941,3.366,2971.3,2970.7,1.01787948]
[1766490241244,3.366,2971.3,2970.5,3.37035742]
[1766490241442,3.366,2971.3,2970.6,1.01787948]
[1766490241846,3.366,2971.3,2970.8,1.01787948]
[1766490242042,1.81721657,2972.7,2971.2,1.01787948]
[1766490242251,7.69113072,2972.8,2971.4,1.01787948]
[1766490242252,0.16834,2971.9,2971.4,1.01787948]
[1766490242543,3.366,2971.8,2971.2,1.01787948]
[1766490247945,3.366,2971.8,2971.0,1.01792263]
[1766490249848,3.366,2971.8,2971.1,3.366]
[1766490253048,3.366,2971.8,2971.2,1.01792263]
[1766490253550,3.53434,2971.9,2971.2,1.01792263]
[1766490255257,0.16834,2971.9,2971.2,1.01792263]
[1766490255457,3.53434,2971.9,2971.2,1.01792263]
[1766490255758,3.53434,2971.9,2971.4,1.01792263]
[1766490256355,3.366,2972.1,2971.4,4.38392263]
[1766490256554,0.17260693,2972.5,2971.8,1.01792263]
[1766490256749,0.17260693,2972.5,2972.1,1.01792263]
[1766490256953,0.17260693,2972.5,2972.0,0.00504506]
[1766490260055,0.00429693,2972.5,2972.1,1.01792263]
[1766490261147,3.743,2973.0,2972.1,1.01792263]
[1766490261347,0.16827,2973.1,2972.7,1.01792263]
[1766490261562,0.16827,2973.1,2972.5,1.01792263]
[1766490262452,0.17254049,2973.1,2972.5,1.02166994]
[1766490263660,3.366,2973.0,2972.5,1.02166994]
[1766490271969,3.53754049,2973.1,2972.5,1.02166994]
[1766490272969,0.17254049,2973.1,2972.5,4.38666994]
[1766490273468,0.17254049,2973.1,2972.7,1.01792263]
[1766490274866,3.365,2973.2,2972.7,1.01792263]
[1766490275766,3.36845764,2973.2,2972.7,1.01792263]
[1766490276870,0.00345764,2973.2,2972.7,1.01792263]
[1766490277073,3.36845764,2973.2,2972.7,1.01792263]
[1766490277464,3.40435764,2973.2,2972.7,1.01792263]
[1766490278270,0.16825,2973.5,2972.7,1.01792263]
[1766490278470,3.365,2973.3,2972.7,1.05382263]
[1766490279274,3.36924455,2973.3,2972.7,1.05382263]
[1766490279868,1e-08,2973.3,2972.9,1.01792263]
[1766490280170,3.365,2973.5,2972.9,1.01792263]
[1766490280365,3.3983,2973.5,2973.0,0.03260001]
[1766490280566,3.365,2973.5,2973.0,0.03260001]
[1766490280962,3.36909929,2973.5,2973.0,0.03260001]
[1766490281172,0.16823,2973.8,2973.0,0.03260001]
[1766490281475,3.365,2973.5,2973.0,0.03260001]
[1766490281669,0.0367,2973.7,2973.0,0.03669999]
[1766490281867,0.16823,2973.8,2973.0,0.03669999]
[1766490281868,3.365,2973.6,2973.0,0.03669999]
[1766490282176,3.36806331,2973.6,2973.0,0.03669999]
[1766490282378,3.40486331,2973.6,2973.0,0.03669999]
[1766490283470,3.36806331,2973.6,2972.9,1.01792263]
[1766490285677,3.53630331,2973.6,2972.8,3.365]
[1766490287877,5.67123,2973.9,2973.3,1.01792263]
[1766490288088,9.03623,2973.9,2973.5,1.01792263]
[1766490288383,1.26792263,2974.9,2973.7,1.01792263]
[1766490288384,0.25,2974.9,2973.7,1.01792263]
[1766490288679,0.16819,2974.5,2974.0,5.06e-06]
[1766490288882,3.365,2974.4,2974.0,5.06e-06]
[1766490289883,0.16821,2974.3,2974.0,5.06e-06]
[1766490290074,0.16821,2974.2,2974.0,5.06e-06]
[1766490290576,3.364,2974.1,2973.4,4.38292263]
[1766490290977,3.47500001,2974.1,2973.5,0.111]
[1766490291484,3.47500001,2974.1,2973.5,0.00504506]
[1766490293386,3.364,2974.4,2973.9,1.01792263]
[1766490293578,0.16821,2974.2,2973.9,1.01792263]
[1766490294686,0.16821,2974.2,2973.7,4.38192263]
[1766490296281,0.16821,2974.2,2973.5,1.02296769]
[1766490296486,0.07839999,2974.1,2973.6,3.364]
[1766490296987,0.16821,2974.2,2973.5,0.00504506]
[1766490297476,0.35571,2974.2,2973.6,0.1875]
[1766490299385,3.364,2974.1,2973.6,0.1875]
[1766490300590,0.16821,2974.2,2973.5,1.02296769]
[1766490300784,3.364,2974.1,2973.5,1.02296769]
[1766490300986,3.364,2974.1,2973.6,0.1875]
[1766490301685,3.71971,2974.1,2973.1,1.01792263]
[1766490301882,1.01792263,2973.8,2972.6,3.364]
[1766490302083,3.364,2973.7,2972.6,3.364]
[1766490302294,3.5591,2973.7,2972.7,0.1951]
[1766490302486,3.53224,2973.7,2972.7,0.1951]
[1766490302790,0.1951,2973.6,2972.9,0.00504506]
[1766490302991,0.36334,2973.6,2972.9,0.00504506]
[1766490303186,1.01792263,2973.6,2972.6,3.364]
[1766490303488,0.16825,2973.5,2972.6,3.364]
[1766490303689,3.364,2973.4,2972.7,0.1729]
[1766490304084,3.364,2973.4,2972.6,4.38192263]
[1766490304289,3.537,2973.4,2972.7,0.17804506]
[1766490304683,3.364,2973.4,2972.7,0.00504506]
[1766490305282,3.364,2973.3,2972.8,0.173]
[1766490305782,3.364,2973.3,2972.7,0.00504506]
[1766490306595,3.364,2973.4,2972.8,0.173]
[1766490306986,0.16825,2973.5,2972.8,1.01792263]
[1766490307181,3.364,2973.7,2973.2,1.01792263]
[1766490307888,3.364,2973.7,2973.0,1.01792263]
[1766490308089,0.16821,2974.1,2973.2,1.01792263]
[1766490308288,3.364,2974.0,2973.4,1.01792263]
[1766490308487,3.364,2973.9,2973.4,1.01792263]
[1766490308683,0.34451,2974.1,2973.4,1.01792263]
[1766490308891,0.34451,2974.1,2973.5,0.17629999]
[1766490308892,3.53221,2974.1,2973.5,0.17629999]
[1766490309094,3.53221,2974.1,2973.4,1.01792263]
[1766490309295,3.53221,2974.1,2973.5,0.17629999]
[1766490309493,3.53221,2974.1,2973.2,3.364]
[1766490309995,3.53221,2974.1,2973.3,1.01641241]
[1766490310397,0.63719999,2974.0,2973.4,0.17629999]
[1766490310897,0.1763,2974.0,2972.2,40.8]
[1766490311197,1.01641241,2973.8,2972.9,1.01641241]
[1766490311391,3.364,2973.7,2972.9,1.01641241]
[1766490311598,3.54380001,2973.7,2973.0,0.1798]
[1766490311790,3.364,2973.7,2972.9,1.01641241]
[1766490314600,3.364,2973.7,2972.8,3.364]
[1766490316401,3.364,2973.6,2972.8,3.364]
[1766490317415,1.18464241,2973.8,2972.8,3.364]
[1766490317615,4.677,2973.7,2972.8,3.364]
[1766490318417,0.1731,2973.6,2972.9,0.1731]
[1766490318816,1.01641241,2973.4,2972.8,3.364]
[1766490319016,3.364,2973.3,2972.8,3.364]
[1766490319516,3.5406,2973.3,2972.8,3.364]
[1766490321113,3.5406,2973.3,2972.7,0.00504506]
[1766490321311,3.364,2973.3,2972.7,0.18164506]
[1766490323317,3.364,2973.3,2972.7,0.00504506]
[1766490327819,3.364,2973.3,2972.5,0.00374731]
[1766490328016,3.364,2973.3,2972.4,4.38041241]
[1766490328221,0.1767,2973.2,2972.5,0.1767]
[1766490328718,0.1767,2973.2,2972.6,0.00504506]
[1766490329020,0.1767,2973.2,2972.6,0.00815062]
[1766490329214,3.53226,2973.3,2972.6,0.00815062]
[1766490331724,1.01641241,2973.2,2972.4,2.38114733]
[1766490332111,1.18468241,2973.2,2972.2,1.01641241]
[1766490332312,0.1965,2973.1,2972.3,3.5605]
[1766490332614,3.36904506,2973.0,2972.4,0.00504506]
[1766490333014,0.1965,2972.9,2972.4,0.00504506]
[1766490338526,0.1965,2972.9,2972.4,1.02145747]
[1766490339221,3.36904506,2973.0,2972.4,1.02145747]
[1766490339429,3.56204506,2973.0,2972.4,1.21445747]
[1766490339630,3.56204506,2973.0,2972.4,0.19804506]
[1766490340131,3.36904506,2973.0,2972.4,0.00504506]
[1766490352635,3.36904506,2973.0,2972.4,1.02145747]
[1766490352936,3.36904506,2973.0,2972.6,1.01641241]
[1766490353622,0.11240001,2972.9,2972.4,1.02145747]
[1766490353934,3.364,2973.2,2972.8,1.01641241]
[1766490354334,0.0418,2973.1,2972.8,1.01641241]
[1766490357828,0.00504506,2973.2,2972.8,1.01641241]
[1766490358031,3.364,2973.3,2972.9,0.0418]
[1766490358440,3.364,2973.3,2972.8,1.01641241]
[1766490358441,0.0391,2973.2,2972.8,1.01641241]
[1766490358738,0.16824,2973.7,2972.8,1.01641241]
[1766490358930,0.00504506,2973.5,2972.8,1.01641241]
[1766490360941,1.01641241,2973.3,2972.4,1.02145747]
[1766490361148,1.01641241,2973.1,2972.4,0.00504506]
[1766490361532,3.364,2973.0,2972.3,3.4062646]
[1766490361736,1.01641241,2972.7,2972.0,9.72]
[1766490361930,4.38041241,2972.7,2971.7,1.01641241]
[1766490362139,0.05540001,2972.6,2971.7,3.364]
[1766490362332,0.05540001,2972.6,2971.9,1.01641241]
[1766490362539,3.5323,2972.7,2971.9,1.01641241]
[1766490362841,3.5323,2972.7,2972.0,0.00504506]
[1766490363242,0.05540001,2972.6,2972.0,0.00504506]
[1766490363435,3.5323,2972.7,2972.0,0.00504506]
[1766490365643,0.1683,2972.7,2972.3,1.01641241]
[1766490365948,3.5333,2972.7,2972.3,1.01641241]
[1766490366446,3.5886,2972.7,2972.3,1.01641241]
[1766490366946,3.5333,2972.7,2972.3,1.01641241]
[1766490367148,3.5333,2972.7,2972.1,1.01641241]
[1766490367451,0.0553,2972.6,2972.0,3.42534506]
[1766490367940,4.54971241,2972.7,2972.0,3.37004506]
[1766490368142,0.0519,2972.6,2972.0,3.37004506]
[1766490368549,4.54971241,2972.7,2972.0,3.37004506]
[1766490368846,0.0519,2972.6,2972.0,3.37004506]
[1766490369349,4.54971241,2972.7,2972.0,3.37004506]
[1766490369548,0.0519,2972.6,2972.0,3.37004506]
[1766490370251,4.54971241,2972.7,2972.0,3.37004506]
[1766490370456,0.0519,2972.6,2972.0,3.37004506]
[1766490371051,4.54971241,2972.7,2972.0,3.37004506]
[1766490371350,0.0484,2972.6,2972.0,3.37004506]
[1766490371954,3.5333,2972.7,2972.0,3.37004506]
[1766490372150,0.0484,2972.6,2972.0,3.37004506]
[1766490373050,3.5333,2972.7,2972.0,3.37004506]
[1766490373252,0.0484,2972.6,2972.0,3.37004506]
[1766490373653,3.4524,2972.7,2972.0,3.37004506]
[1766490373950,0.0484,2972.6,2972.0,3.37004506]
[1766490374350,3.4524,2972.7,2972.0,3.37004506]
[1766490374552,0.05,2972.6,2972.0,3.37004506]
[1766490375155,3.4524,2972.7,2972.0,3.37004506]
[1766490375346,0.05,2972.6,2972.0,3.37004506]
[1766490375754,0.05,2972.6,2972.0,3.42004506]
[1766490376552,3.365,2973.6,2972.9,1.0173659]
[1766490376753,3.365,2973.6,2972.7,1.0173659]
[1766490376953,3.365,2973.6,2972.6,3.365]
[1766490377854,3.53324,2973.6,2972.6,3.365]
[1766490380052,0.16826,2973.4,2972.0,0.00504506]
[1766490380356,1.0173659,2973.1,2972.1,3.365]
[1766490380550,3.365,2973.0,2972.1,3.365]
[1766490380861,3.4125,2973.0,2972.2,0.0475]
[1766490381160,0.0475,2972.9,2972.2,0.0475]
[1766490381357,3.365,2973.0,2972.1,4.3823659]
[1766490383752,5.65127,2973.2,2972.1,4.3823659]
[1766490383953,3.365,2972.9,2972.1,4.3823659]
[1766490384257,3.365,2972.9,2972.2,0.0475]
[1766490384459,0.0475,2973.1,2972.2,0.0475]
[1766490384660,3.365,2973.0,2972.1,4.3823659]
[1766490384858,3.365,2973.0,2972.2,0.0475]
[1766490385265,3.365,2973.0,2972.1,4.3823659]
[1766490385458,3.4125,2973.0,2972.2,0.0475]
[1766490386064,3.4125,2973.0,2972.1,3.365]
[1766490386255,0.0475,2973.0,2972.2,0.0475]
[1766490386462,3.365,2972.9,2972.2,0.0475]
[1766490386861,3.365,2972.9,2972.1,3.365]
[1766490388665,3.365,2972.9,2972.2,0.0474]
[1766490389168,3.365,2973.0,2972.1,4.3823659]
[1766490389464,3.365,2973.0,2972.2,0.0277]
[1766490389861,0.01941194,2972.6,2972.2,0.0277]
[1766490390363,0.02770001,2973.0,2972.1,4.3823659]
[1766490390568,3.365,2973.0,2972.1,4.3823659]
[1766490390759,3.365,2973.0,2972.2,0.0277]
[1766490391269,3.365,2973.0,2972.1,4.3823659]
[1766490391466,3.39310001,2973.0,2972.2,0.0781]
[1766490392068,3.39310001,2973.0,2972.1,4.3823659]
[1766490392270,3.39310001,2973.0,2972.2,0.0279]
[1766490393071,3.39310001,2973.0,2972.1,4.3823659]
[1766490393262,3.39310001,2973.0,2972.2,0.0279]